fUSD/lending_fUSD_20250119
["ID","MTS","AMOUNT","RATE_DAILY","PERIOD"]
[349580358,1737307849246,-24496.01983977,0.00021,15]
[349580359,1737307849258,-149745.13100006,0.00021,15]
[349580360,1737307849269,-4878.76847329,0.00021,15]
[349580361,1737307849282,-19516.39998,0.00021,15]
[349580362,1737307849293,-76304.9499735,0.00021,15]
[349580363,1737307849304,-39344.3719,0.00021,15]
[349580364,1737307849315,-19903.9765,0.00021,15]
[349580365,1737307849327,-1319.81494207,0.00021,15]
[349580366,1737307849339,-468.884005,0.00021,15]
[349580367,1737307849392,-800.0,0.00021,15]
[349580368,1737307849404,-1558.95247299,0.00021,15]
[349580369,1737307849415,-10485.0,0.00021,15]
[349580370,1737307849430,-1749.03112201,0.00021,15]
[349580371,1737307849484,-320.50435712,0.00021,15]
[349580372,1737307849496,-31691.84906452,0.00021,15]
[349580374,1737308056874,172.63,0.00010137,2]
[349580378,1737308612653,187.43,0.00012329,2]
[349580379,1737308635249,3183.54,0.00020032,30]
[349580411,1737309031556,-967.1,0.00017957,2]
[349580413,1737309031568,-888.17920304,0.00018958,2]
[349580415,1737309031584,-154.24,0.00018986,2]
[349580416,1737309031597,-300.0,0.00019057,2]
[349580417,1737309031610,-4575.61570713,0.00019058,2]
[349580418,1737309031636,-623.49309,0.00019058,2]
[349580419,1737309031649,-120.08790589,0.00019058,2]
[349580420,1737309031660,-1155.3983652,0.00019058,2]
[349580421,1737309031674,-3844.6016348,0.00019058,2]
[349580422,1737309031685,-5000.0,0.00019058,2]
[349580423,1737309031695,-4690.45095253,0.00019058,2]
[349580424,1737309031738,-309.54904747,0.00019058,2]
[349580425,1737309031753,-2444.55664297,0.00019058,2]
[349580426,1737309035489,-2555.44335703,0.00019058,2]
[349580427,1737309035500,-200.0,0.00019407,2]
[349580428,1737309035511,-200.0,0.00019448,2]
[349580429,1737309035522,-200.0,0.00019453,2]
[349580430,1737309035532,-150.0,0.00019479,2]
[349580431,1737309035543,-200.0,0.00019485,2]
[349580432,1737309035553,-2257.0,0.000195,2]
[349580433,1737309035565,-1000.0,0.00019703,2]
[349580434,1737309035575,-250.0,0.00019725,2]
[349580435,1737309035586,-539.69732819,0.00019732,2]
[349580436,1737309035597,-606.94,0.00019802,2]
[349580437,1737309035607,-250.0,0.00019814,2]
[349580438,1737309035618,-1745.93943153,0.00019823,2]
[349580439,1737309035663,-4284.75801751,0.00019823,2]
[349580440,1737309035676,-3987.87375137,0.00019823,2]
[349580443,1737309035688,-2367.95934058,0.00019823,2]
[349580445,1737309035701,-1101.0,0.00019823,2]
[349580642,1737309037487,-984.65392562,0.00019823,2]
[349580644,1737309037500,-672.28257604,0.00019823,2]
[349580647,1737309037512,-1057.93702075,0.00019823,2]
[349580674,1737309037762,-1010.58173802,0.00019823,2]
[349580884,1737309039713,-6029.48000006,0.00019823,2]
[349580887,1737309039727,-316.64,0.00019823,2]
[349580897,1737309039830,-340.89419852,0.00019823,2]
[349580900,1737309039842,-172.45,0.00019832,2]
[349580902,1737309039853,-1240.33,0.00019842,2]
[349580904,1737309039864,-250.0,0.00019842,2]
[349580906,1737309039875,-1092.5511821,0.00019853,2]
[349580908,1737309039886,-152.61,0.00019878,2]
[349580910,1737309039897,-851.695,0.00019898,2]
[349580912,1737309039908,-203.67332835,0.00019998,2]
[349580915,1737309039919,-500.0,0.00019998,2]
[349580917,1737309039929,-500.0,0.00019998,2]
[349580919,1737309039939,-500.0,0.00019998,2]
[349580921,1737309039949,-645.13,0.00019998,2]
[349580923,1737309039959,-500.0,0.00019998,2]
[349580951,1737309040270,-530.96274226,0.00019998,2]
[349580954,1737309040287,-500.0,0.00019998,2]
[349580955,1737309040297,-500.0,0.00019998,2]
[349580956,1737309040306,-500.0,0.00019998,2]
[349580957,1737309040318,-500.0,0.00019998,2]
[349580958,1737309040328,-500.0,0.00019998,2]
[349580959,1737309040336,-500.0,0.00019998,2]
[349580960,1737309040346,-483.29118691,0.00019998,2]
[349580961,1737309040361,-16.70881309,0.00019998,2]
[349580962,1737309040371,-500.0,0.00019998,2]
[349580963,1737309040380,-41.97452299,0.00019998,2]
[349580972,1737309042543,-487.07547701,0.00019998,2]
[349580974,1737309042553,-500.0,0.00019998,2]
[349580976,1737309042565,-594.15574822,0.00019998,2]
[349580978,1737309042574,-500.0,0.00019998,2]
[349580980,1737309042583,-500.0,0.00019998,2]
[349580982,1737309042593,-500.0,0.00019998,2]
[349580984,1737309042601,-500.0,0.00019998,2]
[349580986,1737309042611,-500.0,0.00019998,2]
[349580987,1737309042620,-500.0,0.00019998,2]
[349580988,1737309042629,-500.0,0.00019998,2]
[349580989,1737309042638,-168.77334734,0.000202,2]
[349580990,1737309042649,-8.37665266,0.000202,2]
[349580991,1737309042658,-261.33334734,0.00020221,2]
[349581008,1737309045643,-527.37741369,0.00020221,2]
[349581009,1737309045655,-178.38923897,0.00020221,2]
[349581010,1737309045665,-360.13,0.00020272,2]
[349581011,1737309045675,-500.0,0.00020272,2]
[349581012,1737309045685,-529.05,0.00020272,2]
[349581013,1737309045695,-500.0,0.00020272,2]
[349581014,1737309045704,-500.0,0.00020272,2]
[349581015,1737309045713,-2754.1057,0.00020445,2]
[349581016,1737309045722,-5074.58756928,0.00020445,2]
[349581017,1737309045734,-71639.9222985,0.00020445,2]
[349581018,1737309045743,-153.42657498,0.00020446,2]
[349581019,1737309045752,-153.42657498,0.00020511,2]
[349581020,1737309045762,-529.05,0.00020546,2]
[349581021,1737309045772,-500.0,0.00020546,2]
[349581022,1737309045781,-152.36969185,0.00020546,2]
[349581023,1737309045792,-153.42657498,0.00020576,2]
[349581024,1737309045802,-292.5602474,0.0002058,2]
[349581025,1737309045811,-152.61,0.00020614,2]
[349581026,1737309045822,-153.42657498,0.00020641,2]
[349581027,1737309045832,-153.42657498,0.00020705,2]
[349581028,1737309045841,-153.42657498,0.0002077,2]
[349581029,1737309045850,-150.0,0.0002079,2]
[349581030,1737309045859,-150.0,0.0002079,2]
[349581031,1737309045869,-150.0,0.00020792,2]
[349581032,1737309045878,-150.0,0.00020795,2]
[349581033,1737309045887,-150.0,0.00020796,2]
[349581034,1737309045903,-150.0,0.00020802,2]
[349581035,1737309045913,-150.0,0.00020806,2]
[349581036,1737309045922,-150.0,0.00020807,2]
[349581037,1737309045932,-150.0,0.00020808,2]
[349581038,1737309045942,-150.0,0.00020818,2]
[349581039,1737309045951,-150.0,0.00020818,2]
[349581040,1737309045962,-529.05,0.0002082,2]
[349581041,1737309045972,-500.0,0.0002082,2]
[349581042,1737309045982,-150.0,0.00020826,2]
[349581043,1737309045991,-150.0,0.00020828,2]
[349581044,1737309046001,-150.0,0.0002083,2]
[349581045,1737309046010,-150.0,0.0002083,2]
[349581046,1737309046019,-150.0,0.00020834,2]
[349581047,1737309046028,-150.0,0.00020834,2]
[349581048,1737309046038,-153.42657498,0.00020835,2]
[349581049,1737309046047,-150.0,0.00020837,2]
[349581050,1737309046056,-150.0,0.00020838,2]
[349581051,1737309046064,-150.0,0.00020841,2]
[349581052,1737309046075,-150.0,0.00020843,2]
[349581053,1737309046084,-150.0,0.00020847,2]
[349581054,1737309046092,-150.0,0.0002085,2]
[349581055,1737309046102,-150.0,0.00020858,2]
[349581056,1737309046111,-150.0,0.0002086,2]
[349581057,1737309046120,-150.0,0.00020861,2]
[349581058,1737309046129,-150.0,0.00020864,2]
[349581059,1737309046138,-150.0,0.00020864,2]
[349581060,1737309046147,-150.0,0.00020871,2]
[349581061,1737309046156,-150.0,0.00020874,2]
[349581062,1737309046165,-150.0,0.00020878,2]
[349581063,1737309046174,-150.0,0.0002088,2]
[349581064,1737309046184,-150.0,0.00020881,2]
[349581065,1737309046196,-150.0,0.00020883,2]
[349581066,1737309046217,-150.0,0.00020884,2]
[349581067,1737309046226,-150.0,0.00020887,2]
[349581068,1737309046235,-150.0,0.00020889,2]
[349581069,1737309046244,-150.0,0.0002089,2]
[349581070,1737309046254,-340.61724845,0.0002089,2]
[349581071,1737309046263,-340.61724836,0.00020891,2]
[349581072,1737309046272,-150.0,0.00020892,2]
[349581073,1737309046282,-340.61724836,0.00020892,2]
[349581074,1737309046291,-2500.0,0.00020893,2]
[349581075,1737309046300,-340.61724836,0.00020893,2]
[349581076,1737309046310,-340.61724836,0.00020894,2]
[349581077,1737309046321,-340.61724836,0.00020896,2]
[349581078,1737309046331,-150.0,0.00020896,2]
[349581079,1737309046341,-340.61724836,0.00020897,2]
[349581080,1737309046350,-150.0,0.00020897,2]
[349581081,1737309046360,-340.61724836,0.00020898,2]
[349581082,1737309046370,-150.0,0.00020898,2]
[349581083,1737309046380,-150.0,0.00020898,2]
[349581084,1737309046390,-150.0,0.00020898,2]
[349581085,1737309046400,-340.61724836,0.00020899,2]
[349581086,1737309046409,-150.0,0.00020899,2]
[349581087,1737309046419,-340.61724836,0.000209,2]
[349581088,1737309046428,-2653.3965,0.000209,2]
[349581089,1737309046437,-987.4228987,0.000209,2]
[349581090,1737309046447,-287.94106104,0.000209,2]
[349581091,1737309046457,-153.42657498,0.000209,2]
[349581092,1737309046469,-6627.94129516,0.000209,2]
[349581093,1737309046478,-2136.57338388,0.000209,2]
[349581094,1737309046487,-209.29096882,0.000209,2]
[349581095,1737309046498,-150.0,0.00020901,2]
[349581096,1737309046507,-150.0,0.00020905,2]
[349581097,1737309046516,-150.0,0.00020911,2]
[349581098,1737309046526,-150.0,0.00020913,2]
[349581099,1737309046536,-150.0,0.00020913,2]
[349581100,1737309046546,-150.0,0.00020914,2]
[349581101,1737309046556,-150.0,0.00020918,2]
[349581102,1737309046567,-150.0,0.00020919,2]
[349581103,1737309046577,-150.0,0.00020919,2]
[349581104,1737309046586,-150.0,0.0002092,2]
[349581105,1737309046596,-150.0,0.00020923,2]
[349581106,1737309046606,-150.0,0.00020926,2]
[349581107,1737309046615,-150.0,0.00020927,2]
[349581108,1737309046624,-150.0,0.00020932,2]
[349581109,1737309046634,-150.0,0.00020933,2]
[349581110,1737309046643,-150.0,0.00020939,2]
[349581111,1737309046653,-150.0,0.00020939,2]
[349581112,1737309046662,-150.0,0.00020945,2]
[349581113,1737309046671,-150.0,0.00020946,2]
[349581114,1737309046680,-150.0,0.00020962,2]
[349581115,1737309046690,-150.0,0.00020963,2]
[349581116,1737309046700,-150.0,0.00020964,2]
[349581117,1737309046710,-150.0,0.00020975,2]
[349581118,1737309046719,-150.0,0.00020978,2]
[349581119,1737309046728,-150.0,0.00020985,2]
[349581120,1737309046738,-150.0,0.00020985,2]
[349581121,1737309046748,-150.0,0.00020986,2]
[349581122,1737309046757,-150.0,0.00020988,2]
[349581123,1737309046767,-150.0,0.00020989,2]
[349581124,1737309046776,-150.74,0.0002099,2]
[349581125,1737309046787,-150.74,0.0002099,2]
[349581126,1737309046799,-150.74,0.0002099,2]
[349581127,1737309046808,-150.74,0.0002099,2]
[349581128,1737309046818,-150.74,0.0002099,2]
[349581129,1737309046827,-150.74,0.0002099,2]
[349581130,1737309046836,-150.74,0.0002099,2]
[349581131,1737309046845,-150.74,0.0002099,2]
[349581132,1737309046855,-150.74,0.0002099,2]
[349581133,1737309046864,-150.74,0.0002099,2]
[349581134,1737309046874,-150.74,0.0002099,2]
[349581135,1737309046883,-150.74,0.0002099,2]
[349581136,1737309046894,-150.74,0.0002099,2]
[349581137,1737309046903,-150.74,0.0002099,2]
[349581138,1737309046912,-150.74,0.0002099,2]
[349581139,1737309046922,-150.74,0.0002099,2]
[349581140,1737309046931,-150.74,0.0002099,2]
[349581141,1737309046941,-150.74,0.0002099,2]
[349581142,1737309046951,-150.74,0.0002099,2]
[349581143,1737309046960,-150.74,0.0002099,2]
[349581144,1737309046970,-150.74,0.0002099,2]
[349581145,1737309046980,-150.74,0.0002099,2]
[349581146,1737309046989,-150.74,0.0002099,2]
[349581147,1737309046999,-150.74,0.0002099,2]
[349581148,1737309047008,-150.74,0.0002099,2]
[349581149,1737309047018,-150.74,0.0002099,2]
[349581150,1737309047027,-150.74,0.0002099,2]
[349581151,1737309047036,-150.74,0.0002099,2]
[349581152,1737309047046,-150.74,0.0002099,2]
[349581153,1737309047055,-150.74,0.0002099,2]
[349581154,1737309047065,-150.74,0.0002099,2]
[349581155,1737309047074,-150.74,0.0002099,2]
[349581156,1737309047084,-150.74,0.0002099,2]
[349581157,1737309047094,-150.74,0.0002099,2]
[349581158,1737309047104,-150.74,0.0002099,2]
[349581159,1737309047113,-150.74,0.0002099,2]
[349581160,1737309047123,-150.74,0.0002099,2]
[349581161,1737309047133,-150.74,0.0002099,2]
[349581162,1737309047143,-150.74,0.0002099,2]
[349581163,1737309047153,-150.74,0.0002099,2]
[349581164,1737309047163,-150.74,0.0002099,2]
[349581165,1737309047173,-150.74,0.0002099,2]
[349581166,1737309047183,-150.74,0.0002099,2]
[349581167,1737309047193,-150.74,0.0002099,2]
[349581168,1737309047202,-150.74,0.0002099,2]
[349581169,1737309047212,-150.74,0.0002099,2]
[349581170,1737309047222,-150.74,0.0002099,2]
[349581171,1737309047232,-150.74,0.0002099,2]
[349581172,1737309047242,-150.74,0.0002099,2]
[349581173,1737309047251,-150.74,0.0002099,2]
[349581174,1737309047260,-150.74,0.0002099,2]
[349581175,1737309047271,-150.74,0.0002099,2]
[349581176,1737309047281,-150.74,0.0002099,2]
[349581177,1737309047291,-150.74,0.0002099,2]
[349581178,1737309047300,-150.74,0.0002099,2]
[349581179,1737309047310,-150.74,0.0002099,2]
[349581180,1737309047321,-150.74,0.0002099,2]
[349581181,1737309047331,-150.74,0.0002099,2]
[349581182,1737309047340,-150.74,0.0002099,2]
[349581183,1737309047349,-150.74,0.0002099,2]
[349581184,1737309047359,-150.74,0.0002099,2]
[349581185,1737309047369,-150.74,0.0002099,2]
[349581186,1737309047378,-150.74,0.0002099,2]
[349581187,1737309047388,-150.74,0.0002099,2]
[349581188,1737309047398,-150.74,0.0002099,2]
[349581189,1737309047407,-150.74,0.0002099,2]
[349581190,1737309047416,-150.0,0.00020991,2]
[349581191,1737309047426,-150.0,0.00020992,2]
[349581192,1737309047436,-429.8722039,0.00020993,2]
[349581193,1737309047445,-8317.2358614,0.00020993,2]
[349581194,1737309047455,-500.0,0.00020996,2]
[349581195,1737309047464,-851.06,0.00020996,2]
[349581196,1737309047474,-500.0,0.00020996,2]
[349581197,1737309047484,-500.0,0.00020996,2]
[349581198,1737309047494,-500.0,0.00020996,2]
[349581199,1737309047503,-500.0,0.00020996,2]
[349581200,1737309047512,-500.0,0.00020996,2]
[349581201,1737309047522,-809.16,0.00020996,2]
[349581202,1737309047531,-554.63,0.00020996,2]
[349581203,1737309047541,-548.12,0.00020996,2]
[349581204,1737309047551,-500.0,0.00020996,2]
[349581205,1737309047561,-500.0,0.00020996,2]
[349581206,1737309047572,-500.0,0.00020996,2]
[349581207,1737309047582,-500.0,0.00020996,2]
[349581208,1737309047592,-500.0,0.00020996,2]
[349581209,1737309047601,-500.0,0.00020996,2]
[349581210,1737309047611,-500.0,0.00020996,2]
[349581211,1737309047621,-685.2,0.00020996,2]
[349581212,1737309047632,-500.0,0.00020996,2]
[349581213,1737309047642,-630.77,0.00020996,2]
[349581214,1737309047651,-500.0,0.00020996,2]
[349581215,1737309047661,-510.4,0.00020996,2]
[349581216,1737309047671,-571.61,0.00020996,2]
[349581217,1737309047680,-500.0,0.00020996,2]
[349581218,1737309047689,-692.46,0.00020996,2]
[349581219,1737309047699,-500.0,0.00020996,2]
[349581220,1737309047708,-38737.83718806,0.00020997,2]
[349581221,1737309047723,-1052.74036965,0.00020997,2]
[349581222,1737309047735,-19197.03152762,0.00020997,2]
[349581223,1737309047744,-150.0,0.00020997,2]
[349581224,1737309047755,-500.0,0.00020998,2]
[349581225,1737309047765,-500.0,0.00020998,2]
[349581226,1737309047775,-500.0,0.00020998,2]
[349581227,1737309047785,-500.0,0.00020998,2]
[349581228,1737309047797,-577.10901889,0.00020998,2]
[349581229,1737309047806,-500.0,0.00020998,2]
[349581230,1737309047818,-500.0,0.00020998,2]
[349581231,1737309047827,-500.0,0.00020998,2]
[349581232,1737309047837,-500.0,0.00020998,2]
[349581233,1737309047846,-500.0,0.00020998,2]
[349581234,1737309047856,-500.0,0.00020998,2]
[349581235,1737309047865,-500.0,0.00020998,2]
[349581236,1737309047875,-500.0,0.00020998,2]
[349581237,1737309047884,-294.02125602,0.00020998,2]
[349581238,1737309047894,-500.0,0.00020998,2]
[349581239,1737309047904,-200.44632802,0.00020998,2]
[349581240,1737309047913,-500.0,0.00020998,2]
[349581241,1737309047922,-321.16750276,0.00020998,2]
[349581242,1737309047932,-500.0,0.00020998,2]
[349581243,1737309047942,-500.0,0.00020998,2]
[349581244,1737309047951,-500.0,0.00020998,2]
[349581245,1737309047960,-500.0,0.00020998,2]
[349581246,1737309047970,-500.0,0.00020998,2]
[349581247,1737309047980,-500.0,0.00020998,2]
[349581248,1737309047990,-456.55797009,0.00020998,2]
[349581249,1737309048000,-500.0,0.00020998,2]
[349581250,1737309048010,-500.0,0.00020998,2]
[349581251,1737309048023,-566.29397585,0.00020998,2]
[349581252,1737309048034,-500.0,0.00020998,2]
[349581253,1737309048044,-500.0,0.00020998,2]
[349581254,1737309048202,-509.56376696,0.00020998,2]
[349581255,1737309048212,-500.0,0.00020998,2]
[349581256,1737309048222,-588.28801189,0.00020998,2]
[349581257,1737309048231,-500.0,0.00020998,2]
[349581258,1737309048243,-445.07696134,0.00020998,2]
[349581259,1737309048260,-500.0,0.00020998,2]
[349581260,1737309048270,-593.94,0.00020999,2]
[349581261,1737309048281,-500.0,0.00020999,2]
[349581262,1737309048291,-500.0,0.00020999,2]
[349581263,1737309048301,-500.0,0.00020999,2]
[349581264,1737309048311,-150.0,0.00020999,2]
[349581265,1737309048323,-500.0,0.00020999,2]
[349581266,1737309048333,-500.0,0.00020999,2]
[349581267,1737309048343,-500.0,0.00020999,2]
[349581268,1737309048352,-500.0,0.00020999,2]
[349581269,1737309048362,-500.0,0.00020999,2]
[349581270,1737309048372,-500.0,0.00020999,2]
[349581271,1737309048382,-564.02,0.00020999,2]
[349581272,1737309048392,-389.18978389,0.00020999,2]
[349581273,1737309048401,-500.0,0.00020999,2]
[349581274,1737309048411,-714.46,0.00020999,2]
[349581275,1737309048421,-500.0,0.00020999,2]
[349581276,1737309048431,-500.0,0.00020999,2]
[349581277,1737309048441,-500.0,0.00020999,2]
[349581278,1737309048451,-500.0,0.00020999,2]
[349581279,1737309048460,-500.0,0.00020999,2]
[349581280,1737309048470,-500.0,0.00020999,2]
[349581281,1737309048480,-500.0,0.00020999,2]
[349581282,1737309048489,-1275.39,0.00020999,2]
[349581283,1737309048499,-503.8,0.00020999,2]
[349581284,1737309048509,-813.8,0.00020999,2]
[349581285,1737309048518,-791.28,0.00020999,2]
[349581286,1737309048528,-500.0,0.00020999,2]
[349581287,1737309048538,-500.0,0.00020999,2]
[349581288,1737309048547,-500.0,0.00020999,2]
[349581289,1737309048557,-500.0,0.00020999,2]
[349581290,1737309048568,-500.0,0.00020999,2]
[349581291,1737309048578,-1549.04,0.00020999,2]
[349581292,1737309048588,-500.0,0.00020999,2]
[349581293,1737309048598,-701.84,0.00020999,2]
[349581294,1737309048608,-500.0,0.00020999,2]
[349581295,1737309048618,-500.0,0.00020999,2]
[349581296,1737309048628,-500.0,0.00020999,2]
[349581297,1737309048638,-500.0,0.00020999,2]
[349581298,1737309048647,-500.0,0.00020999,2]
[349581299,1737309048658,-500.0,0.00020999,2]
[349581300,1737309048667,-500.0,0.00020999,2]
[349581301,1737309048677,-500.0,0.00020999,2]
[349581302,1737309048687,-500.0,0.00020999,2]
[349581303,1737309048698,-500.0,0.00020999,2]
[349581304,1737309048708,-500.0,0.00020999,2]
[349581305,1737309048717,-1428.51,0.00020999,2]
[349581306,1737309048727,-500.0,0.00020999,2]
[349581307,1737309048737,-500.0,0.00020999,2]
[349581308,1737309048750,-500.0,0.00020999,2]
[349581309,1737309048760,-500.0,0.00020999,2]
[349581310,1737309048770,-500.0,0.00020999,2]
[349581311,1737309048780,-500.0,0.00020999,2]
[349581312,1737309048791,-500.0,0.00020999,2]
[349581313,1737309048803,-961.12,0.00020999,2]
[349581314,1737309048814,-500.0,0.00020999,2]
[349581315,1737309048826,-1385.3,0.00020999,2]
[349581316,1737309048837,-500.0,0.00020999,2]
[349581317,1737309048847,-500.0,0.00020999,2]
[349581318,1737309048857,-500.0,0.00020999,2]
[349581319,1737309048867,-500.0,0.00020999,2]
[349581320,1737309048879,-38596.20884097,0.00021,2]
[349581321,1737309048893,-4130.4278381,0.00021,2]
[349581322,1737309048909,-11997.67008126,0.00021,2]
[349581323,1737309048924,-5563.68496587,0.00021,2]
[349581324,1737309048935,-11998.8163963,0.00021,2]
[349581325,1737309158979,150.0,0.00013012,2]
[349581327,1737309505076,602.63338558,0.0001966,30]
[349581328,1737309505102,2429.56661442,0.0001966,30]
[349581329,1737309622620,-291.45007405,0.00014499,2]
[349581330,1737309622646,-259.08263175,0.00014499,2]
[349581331,1737309622672,-198.02612403,0.00014499,2]
[349581332,1737309622698,-12485.44966717,0.000145,2]
[349581333,1737309695895,152.62,0.00010137,2]
[349581335,1737309976950,300.0,0.000145,90]
[349581338,1737310231767,-151.67272517,0.000144,2]
[349581339,1737310231777,-744.03823346,0.000144,2]
[349581340,1737310231786,-300.0,0.00014499,2]
[349581341,1737310231795,-345.40565097,0.000145,2]
[349581342,1737310231807,-6620.72211883,0.000145,2]
[349581343,1737310231818,-1352.31,0.000145,2]
[349581344,1737310232067,-2855.91574988,0.000145,2]
[349581345,1737310232078,-366.84856158,0.000145,2]
[349581346,1737310232090,-522.3652808,0.000145,2]
[349581621,1737310237646,-18868.59000005,0.000145,2]
[349581622,1737310237659,-19600.0,0.000145,2]
[349581623,1737310237670,-2985.4890552,0.000145,2]
[349581624,1737310237858,-68878.28139505,0.000145,2]
[349581625,1737310237870,-29157.63049015,0.000145,2]
[349581626,1737310237902,-881.78497543,0.000145,2]
[349581627,1737310237913,-105020.0,0.000145,2]
[349581628,1737310237925,-11616.86187716,0.000145,2]
[349581629,1737310237935,-174.86436848,0.000145,2]
[349581630,1737310237944,-550.0,0.00015,2]
[349581631,1737310237954,-897.55,0.00016666,2]
[349581632,1737310237965,-209.29096882,0.000169,2]
[349581633,1737310237975,-600.0,0.00017,2]
[349581634,1737310237985,-179.70101572,0.00018,2]
[349581635,1737310237995,-195.0,0.00018081,2]
[349581636,1737310238004,-152.25,0.00018628,2]
[349581637,1737310238015,-250.0,0.00018701,2]
[349581638,1737310238024,-871.685,0.00018722,2]
[349581639,1737310238034,-158.377,0.00018722,2]
[349581640,1737310238043,-1000.0,0.00018856,2]
[349581641,1737310238053,-897.55,0.0001893,2]
[349581642,1737310238062,-650.0,0.00019,2]
[349581643,1737310238072,-179.0,0.00019,2]
[349581644,1737310238081,-23247.07166839,0.00019178,2]
[349581645,1737310238093,-2869.3870659,0.00019178,2]
[349581646,1737310238104,-26242.53542195,0.00019178,2]
[349581647,1737310238120,-489.04999834,0.00019178,2]
[349581705,1737310239864,-3568.49594808,0.00019178,2]
[349581717,1737310239977,-3151.2,0.00019178,2]
[349581721,1737310240003,-1570.3764679,0.00019178,2]
[349581723,1737310240014,-541.31675912,0.00019178,2]
[349581725,1737310240025,-322.34428781,0.00019178,2]
[349581732,1737310240115,-374.52751699,0.00019178,2]
[349581733,1737310240126,-807.24999,0.00019178,2]
[349581734,1737310240137,-474.51158755,0.00019178,2]
[349581735,1737310240149,-261.0300001,0.00019178,2]
[349581736,1737310240210,-2.2e-07,0.00019178,2]
[349581737,1737310240228,-10070.92953383,0.00019178,2]
[349581738,1737310240242,-109350.30222237,0.00019178,2]
[349581749,1737310242801,-774.03585973,0.00019178,2]
[349581750,1737310242812,-343.06,0.00019178,2]
[349581751,1737310242824,-808.53760128,0.00019178,2]
[349581752,1737310242835,-1721.65,0.00019178,2]
[349581753,1737310242932,-2728.5258007,0.00019178,2]
[349581754,1737310242944,-4008.49835588,0.00019178,2]
[349581755,1737310242955,-578.58314681,0.00019178,2]
[349581756,1737310242970,-468.8786624,0.00019178,2]
[349581757,1737310242982,-459.4436244,0.00019178,2]
[349581758,1737310242994,-578.349716,0.00019178,2]
[349581759,1737310243006,-427.42,0.00019178,2]
[349581760,1737310243018,-513.4034575,0.00019178,2]
[349581761,1737310243029,-567.93,0.00019178,2]
[349581762,1737310243041,-475.5,0.00019178,2]
[349581763,1737310243053,-602.72741978,0.00019178,2]
[349581764,1737310243066,-954.6,0.00019178,2]
[349581765,1737310243078,-764.72434,0.00019178,2]
[349581766,1737310243091,-39120.04693368,0.00019178,2]
[349581767,1737310243103,-2516.16206871,0.00019178,2]
[349581768,1737310243120,-5250.00457257,0.00019178,2]
[349581769,1737310243131,-3064.1633902,0.00019178,2]
[349581770,1737310243143,-6369.65224386,0.00019178,2]
[349581771,1737310243153,-500.0,0.00019178,2]
[349581772,1737310243164,-500.0,0.00019178,2]
[349581773,1737310243175,-500.0,0.00019178,2]
[349581774,1737310243186,-500.0,0.00019178,2]
[349581775,1737310243195,-503.74187783,0.00019178,2]
[349581777,1737310243206,-538.02765059,0.00019178,2]
[349581779,1737310243215,-500.0,0.00019178,2]
[349581781,1737310243226,-500.32583259,0.00019178,2]
[349581783,1737310243236,-500.0,0.00019178,2]
[349581785,1737310243246,-500.0,0.00019178,2]
[349581788,1737310243256,-500.0,0.00019178,2]
[349581790,1737310243265,-500.0,0.00019178,2]
[349581792,1737310243275,-500.0,0.00019178,2]